lending/lending_fUSD_20250130
["ID","MTS","AMOUNT","RATE_DAILY","PERIOD"]
[350931162,1738213834609,-211.0,0.0002126,2]
[350931163,1738213834620,-205.0,0.0002126,2]
[350931164,1738213834630,-150.0,0.00021282,2]
[350931165,1738213834640,-165.0,0.00021283,2]
[350931166,1738213834650,-166.18,0.00021283,2]
[350931167,1738213834660,-150.0,0.00021293,2]
[350931168,1738213834671,-150.0,0.00021293,2]
[350931169,1738213834681,-9581.80334476,0.000213,2]
[350931170,1738213834691,-1000.0,0.000213,2]
[350931171,1738213834701,-150.0,0.00021314,2]
[350931172,1738213834711,-500.0,0.00021328,2]
[350931173,1738213834721,-152.63335777,0.00021329,2]
[350931174,1738213834731,-150.0,0.0002133,2]
[350931175,1738213834741,-150.0,0.00021333,2]
[350931176,1738213834751,-150.0,0.00021333,2]
[350931177,1738213834760,-150.0,0.00021339,2]
[350931178,1738213834770,-150.0,0.0002134,2]
[350931179,1738213834782,-150.0,0.00021349,2]
[350931180,1738213834791,-429.78644604,0.0002135,2]
[350931181,1738213834801,-150.0,0.00021368,2]
[350931182,1738213834811,-3076.00288831,0.00021369,4]
[350931183,1738213834821,-217.36420666,0.00021369,4]
[350931184,1738213834831,-510.6025791,0.00021369,4]
[350931185,1738213834841,-502.63541482,0.00021369,4]
[350931186,1738213834850,-581.97853616,0.00021369,4]
[350931187,1738213834860,-500.0,0.00021369,4]
[350931188,1738213834871,-1560.88,0.00021369,4]
[350931189,1738213834883,-232.61570057,0.00021369,4]
[350931190,1738213834893,-500.0,0.00021369,4]
[350931191,1738213834902,-622.67027549,0.00021369,4]
[350931192,1738213834912,-1803.47,0.00021369,4]
[350931193,1738213834923,-500.65,0.00021369,4]
[350931194,1738213834932,-500.0,0.00021369,4]
[350931195,1738213834942,-500.0,0.00021369,4]
[350931196,1738213834952,-150.0,0.0002137,2]
[350931197,1738213834962,-166.0,0.00021373,2]
[350931198,1738213834971,-150.0,0.00021378,2]
[350931199,1738213834981,-915.8085,0.00021379,2]
[350931200,1738213834991,-3000.0,0.000214,2]
[350931201,1738213835002,-185.0071,0.000214,2]
[350931202,1738213835011,-431.77250411,0.000214,2]
[350931203,1738213835021,-204.34,0.000214,31]
[350931204,1738213835031,-204.34,0.000214,31]
[350931205,1738213835040,-204.34,0.000214,31]
[350931206,1738213835049,-204.34,0.000214,31]
[350931207,1738213835059,-204.34,0.000214,31]
[350931208,1738213835068,-204.34,0.000214,31]
[350931209,1738213835078,-204.34,0.000214,31]
[350931210,1738213835087,-204.34,0.000214,31]
[350931211,1738213835097,-204.34,0.000214,31]
[350931212,1738213835106,-204.34,0.000214,31]
[350931213,1738213835115,-204.34,0.000214,31]
[350931214,1738213835125,-204.34,0.000214,31]
[350931215,1738213835135,-204.34,0.000214,31]
[350931216,1738213835145,-204.34,0.000214,31]
[350931217,1738213835154,-204.34,0.000214,31]
[350931218,1738213835163,-204.34,0.000214,31]
[350931219,1738213835172,-205.44546595,0.000214,2]
[350931220,1738213835181,-299.09456368,0.000214,2]
[350931221,1738213835191,-6534.7567189,0.000214,2]
[350931222,1738213835200,-506.0,0.000214,2]
[350931223,1738213835209,-1000.0,0.00021404,2]
[350931224,1738213835218,-1222.4,0.00021412,2]
[350931225,1738213835227,-150.0,0.00021416,2]
[350931226,1738213835237,-2999.94,0.00021421,2]
[350931227,1738213835245,-431.77250411,0.00021424,2]
[350931228,1738213835254,-150.0,0.00021425,2]
[350931229,1738213835263,-3000.0,0.00021445,2]
[350931230,1738213835272,-431.77250411,0.00021447,2]
[350931231,1738213835281,-150.0,0.00021447,2]
[350931232,1738213835290,-1347.99,0.00021457,2]
[350931233,1738213835300,-1859.0,0.0002146,2]
[350931234,1738213835309,-150.0,0.00021466,2]
[350931235,1738213835319,-300.0,0.0002147,2]
[350931236,1738213835328,-400.0793181,0.0002147,2]
[350931237,1738213835337,-400.0,0.0002147,2]
[350931238,1738213835346,-400.0,0.0002147,2]
[350931239,1738213835356,-300.0,0.0002147,2]
[350931240,1738213835366,-400.0,0.0002147,2]
[350931241,1738213835375,-431.77250411,0.00021471,2]
[350931242,1738213835384,-504.07480115,0.00021473,2]
[350931243,1738213835394,-500.0,0.00021473,2]
[350931244,1738213835403,-150.0,0.00021479,4]
[350931245,1738213835412,-150.0,0.00021479,4]
[350931246,1738213835421,-150.0,0.00021479,4]
[350931247,1738213835430,-5925.30530598,0.00021479,2]
[350931248,1738213835444,-22099.69469402,0.00021479,2]
[350931249,1738213835453,-150.0,0.00021482,2]
[350931250,1738213835462,-150.0,0.00021484,2]
[350931251,1738213835471,-6341.9495106,0.00021485,2]
[350931252,1738213835480,-4952.535108,0.00021485,2]
[350931253,1738213835490,-3563.1207055,0.00021485,2]
[350931254,1738213835499,-2173.7063029,0.00021485,2]
[350931255,1738213835508,-784.2919004,0.00021485,2]
[350931256,1738213835517,-1554.9749845,0.00021485,2]
[350931257,1738213835527,-1214.3061356,0.00021485,2]
[350931258,1738213835537,-873.6372868,0.00021485,2]
[350931259,1738213835547,-532.968438,0.00021485,2]
[350931260,1738213835556,-192.2995892,0.00021485,2]
[350931261,1738213835565,-150.0,0.00021486,2]
[350931262,1738213835574,-164.80713001,0.0002149,2]
[350931263,1738213835584,-164.80713001,0.0002149,2]
[350931264,1738213835593,-7731.3639131,0.00021492,2]
[350931265,1738213835602,-431.77250411,0.00021494,2]
[350931266,1738213835611,-500.0,0.00021494,4]
[350931267,1738213835620,-1803.47,0.00021494,4]
[350931268,1738213835631,-525.2598421,0.00021495,4]
[350931269,1738213835640,-1560.88,0.00021495,4]
[350931270,1738213835649,-1560.88,0.00021495,4]
[350931271,1738213835658,-1895.6438333,0.00021495,2]
[350931272,1738213835668,-500.0,0.00021499,2]
[350931273,1738213835677,-1560.88,0.00021499,4]
[350931274,1738213835686,-1560.88,0.00021499,4]
[350931275,1738213835695,-1560.88,0.00021499,4]
[350931276,1738213835704,-1560.88,0.00021499,4]
[350931277,1738213835714,-1560.88,0.00021499,4]
[350931278,1738213835723,-1560.88,0.00021499,4]
[350931279,1738213835732,-1560.88,0.00021499,4]
[350931280,1738213835742,-1560.88,0.00021499,4]
[350931281,1738213835751,-500.0,0.00021499,4]
[350931282,1738213835760,-1560.88,0.00021499,4]
[350931283,1738213835770,-500.0,0.00021499,4]
[350931284,1738213835780,-1560.88,0.00021499,4]
[350931285,1738213835789,-500.0,0.00021499,4]
[350931286,1738213835798,-1560.88,0.00021499,4]
[350931287,1738213835808,-500.0,0.00021499,4]
[350931288,1738213835818,-515.09046561,0.00021499,4]
[350931289,1738213835828,-1560.88,0.00021499,4]
[350931290,1738213835839,-1560.88,0.00021499,4]
[350931291,1738213835849,-1560.88,0.00021499,4]
[350931292,1738213835858,-1560.88,0.00021499,4]
[350931293,1738213835869,-1560.88,0.00021499,4]
[350931294,1738213835881,-1560.88,0.00021499,4]
[350931295,1738213835890,-1021.55545984,0.00021499,2]
[350931296,1738213835899,-1560.88,0.00021499,4]
[350931297,1738213835909,-1560.88,0.00021499,4]
[350931298,1738213835918,-1560.88,0.00021499,4]
[350931299,1738213835928,-1560.96,0.00021499,4]
[350931300,1738213835937,-500.0,0.00021499,4]
[350931301,1738213835947,-341.55846152,0.00021499,4]
[350931302,1738213835957,-518.93196983,0.00021499,4]
[350931303,1738213835967,-518.96775894,0.00021499,4]
[350931304,1738213835976,-500.0,0.00021499,4]
[350931305,1738213835986,-500.0,0.00021499,4]
[350931306,1738213835995,-500.0,0.00021499,4]
[350931307,1738213836004,-500.0,0.00021499,4]
[350931308,1738213836013,-500.0,0.00021499,4]
[350931309,1738213836023,-500.0,0.00021499,4]
[350931310,1738213836032,-500.0,0.00021499,4]
[350931311,1738213836041,-500.0,0.00021499,4]
[350931312,1738213836051,-500.0,0.00021499,4]
[350931313,1738213836060,-524.38815594,0.00021499,4]
[350931314,1738213836069,-538.69960079,0.00021499,4]
[350931315,1738213836078,-504.76513025,0.00021499,4]
[350931316,1738213836088,-500.0,0.00021499,4]
[350931317,1738213836097,-501.6795947,0.00021499,4]
[350931318,1738213836107,-500.0,0.00021499,4]
[350931319,1738213836117,-500.23484346,0.00021499,4]
[350931320,1738213836126,-319.64041427,0.00021499,4]
[350931321,1738213836138,-500.0,0.00021499,4]
[350931322,1738213836150,-389.87742712,0.00021499,4]
[350931323,1738213836162,-500.0,0.00021499,4]
[350931324,1738213836171,-500.0,0.00021499,4]
[350931325,1738213836180,-500.0,0.00021499,4]
[350931326,1738213836189,-500.0,0.00021499,4]
[350931327,1738213836198,-500.0,0.00021499,4]
[350931328,1738213836208,-500.0,0.00021499,4]
[350931329,1738213836218,-512.18053103,0.00021499,4]
[350931330,1738213836229,-500.0,0.00021499,4]
[350931331,1738213836240,-500.0,0.00021499,4]
[350931332,1738213836252,-500.0,0.00021499,4]
[350931333,1738213836262,-500.0,0.00021499,4]
[350931334,1738213836272,-500.0,0.00021499,4]
[350931335,1738213836281,-314.79182328,0.00021499,4]
[350931336,1738213836290,-500.0,0.00021499,4]
[350931337,1738213836301,-591.53782964,0.00021499,4]
[350931338,1738213836312,-500.0,0.00021499,4]
[350931339,1738213836324,-506.91811396,0.00021499,4]
[350931340,1738213836334,-544.72079119,0.00021499,4]
[350931341,1738213836345,-500.0,0.00021499,4]
[350931342,1738213836355,-500.0,0.00021499,4]
[350931343,1738213836365,-999.0,0.00021499,2]
[350931344,1738213836374,-500.0,0.00021499,4]
[350931345,1738213836383,-222.5970063,0.00021499,4]
[350931346,1738213836393,-1803.47,0.00021499,4]
[350931347,1738213836402,-1803.47,0.00021499,4]
[350931348,1738213836411,-1803.47,0.00021499,4]
[350931349,1738213836423,-1803.47,0.00021499,4]
[350931350,1738213836432,-1803.47,0.00021499,4]
[350931351,1738213836441,-1803.47,0.00021499,4]
[350931352,1738213836450,-1803.47,0.00021499,4]
[350931353,1738213836459,-1803.47,0.00021499,4]
[350931354,1738213836469,-1803.47,0.00021499,4]
[350931355,1738213836478,-1803.47,0.00021499,4]
[350931356,1738213836487,-1803.47,0.00021499,4]
[350931357,1738213836496,-1803.47,0.00021499,4]
[350931358,1738213836506,-1803.47,0.00021499,4]
[350931359,1738213836515,-1803.47,0.00021499,4]
[350931360,1738213836525,-1803.47,0.00021499,4]
[350931361,1738213836535,-1803.47,0.00021499,4]
[350931362,1738213836545,-1803.47,0.00021499,4]
[350931363,1738213836554,-1803.47,0.00021499,4]
[350931364,1738213836563,-1803.47,0.00021499,4]
[350931365,1738213836573,-1803.47,0.00021499,4]
[350931366,1738213836582,-1803.47,0.00021499,4]
[350931367,1738213836591,-1803.53983976,0.00021499,4]
[350931368,1738213836600,-500.0,0.00021499,4]
[350931369,1738213836610,-312.37,0.00021499,4]
[350931370,1738213836619,-197.84353594,0.000215,2]
[350931371,1738213836629,-93781.81479524,0.000215,2]
[350931372,1738213836638,-79071.29248075,0.000215,2]
[350931373,1738213836760,-498.92723845,0.000215,2]
[350931374,1738213836779,-46649.03227229,0.000215,2]
[350931375,1738213836791,-16841.29861591,0.000215,2]
[350931387,1738213837840,-1258.0,0.000177,5]
[350931388,1738213837850,-150.0,0.00021381,2]
[350931389,1738213837859,-150.0,0.00021397,2]
[350931390,1738213837869,-150.0,0.00021405,2]
[350931391,1738213837881,-150.0,0.00021406,2]
[350931392,1738213837890,-150.0,0.00021406,2]
[350931393,1738213837899,-150.0,0.00021415,2]
[350931394,1738213837910,-150.0,0.00021417,2]
[350931395,1738213837919,-150.0,0.00021428,2]
[350931396,1738213837928,-150.0,0.00021429,2]
[350931397,1738213837938,-150.0,0.0002143,2]
[350931398,1738213837947,-150.0,0.00021434,2]
[350931399,1738213837958,-150.0,0.00021438,2]
[350931400,1738213837967,-150.0,0.00021444,2]
[350931401,1738213837977,-150.0,0.00021448,2]
[350931402,1738213837986,-150.0,0.0002145,2]
[350931403,1738213837995,-150.0,0.00021454,2]
[350931404,1738213838003,-150.0,0.00021456,2]
[350931405,1738213838012,-150.0,0.00021469,2]
[350931406,1738213838025,-150.0,0.00021474,2]
[350931407,1738213838035,-150.0,0.00021474,2]
[350931408,1738213838045,-150.0,0.00021475,2]
[350931409,1738213838055,-150.0,0.00021478,2]
[350931410,1738213838064,-150.0,0.0002149,2]
[350931411,1738213838073,-150.0,0.00021493,2]
[350931412,1738213838083,-65125.58641492,0.000215,2]
[350931413,1738213838095,-10115.68895792,0.000215,2]
[350931414,1738213838106,-36173.86279191,0.000215,2]
[350931415,1738213838123,-1118.915,0.000215,2]
[350931524,1738213839886,-35982.10956134,0.000215,2]
[350931565,1738213843844,-3142.50000022,0.000215,2]
[350931569,1738213843903,-73322.64207569,0.000215,2]
[350931570,1738213843916,-3531.83377139,0.000215,2]
[350931571,1738213843964,-42194.2655697,0.000215,2]
[350931572,1738213844079,-2020.0,0.000215,2]
[350931626,1738213845855,-41874.83167989,0.000215,2]
[350931627,1738213845867,-21100.0,0.000215,2]
[350931628,1738213846024,-95699.6,0.000215,2]
[350931629,1738213846036,-222436.62985937,0.000215,2]
[350931630,1738213846048,-540093.6260778,0.000215,2]
[350931631,1738213846060,-105550.0,0.000215,2]
[350931632,1738213846158,-42.2791672,0.000215,2]
[350931739,1738213867941,232.523609,0.0001178,2]
[350931747,1738214005002,157.31,0.00010137,2]
[350931751,1738214707944,2283982.45808698,0.00012,2]
[350931753,1738214729543,116183.99759075,0.00011,2]
[350931758,1738214877354,153.43,0.00010137,2]
[350931806,1738215032025,-187.3,0.00013699,2]
[350931807,1738215032047,-150.0,0.00014384,2]
[350931808,1738215032059,-150.0,0.00015068,2]
[350931809,1738215032072,-150.0,0.00015068,2]
[350931810,1738215032082,-165.78,0.00015294,2]
[350931811,1738215032092,-804.13945227,0.00016,2]
[350931812,1738215032102,-3793.0,0.00017532,2]
[350931813,1738215032111,-304.43298056,0.00017748,2]
[350931814,1738215032121,-500.0,0.00017748,2]
[350931815,1738215032131,-310.73308817,0.000179,2]
[350931816,1738215032143,-763.66769276,0.000179,2]
[350931817,1738215032157,-630.593506,0.00018,2]
[350931818,1738215032167,-644.49,0.00018405,2]
[350931819,1738215032178,-5.41928477,0.00019,2]
[350931820,1738215032194,-101057.55599906,0.00019,2]
[350931821,1738215032233,-1005.91138018,0.00019,2]
[350931822,1738215032460,-744.28320279,0.00019,2]
[350931823,1738215032481,-7934.43106463,0.00019,2]
[350931824,1738215032492,-321.124945,0.00019,2]
[350931825,1738215032503,-898.408,0.00019,2]
[350931826,1738215032515,-2010.06740946,0.00019,2]
[350931827,1738215032526,-1561.880225,0.00019,2]
[350931828,1738215032537,-912.26201413,0.00019,2]
[350931829,1738215032549,-45641.65157662,0.00019,2]
[350931830,1738215032561,-300.0,0.00019,2]
[350931831,1738215032573,-1832.1416959,0.00019,2]
[350931832,1738215032584,-1859.46357618,0.00019,2]
[350931833,1738215032596,-706.29087696,0.00019,2]
[350931848,1738215038076,-2676.64578235,0.00019,2]
[350931849,1738215038186,-5061.72970881,0.00019,2]
[350932038,1738215040247,-478.64835116,0.00019,2]
[350932045,1738215040303,-331.07,0.00019,2]
[350932638,1738215045980,-2376.0,0.00019,2]
[350932639,1738215045992,-253508.23290799,0.00019,2]
[350932645,1738215046045,-94205.50225584,0.00019,2]
[350932647,1738215046057,-6853.10103706,0.00019,2]
[350932666,1738215046229,-343.21999969,0.00019,2]
[350932672,1738215046292,-1886.86235768,0.00019,2]
[350932680,1738215046356,-48855.8337346,0.00019,2]
[350933740,1738215457268,1000.0,0.00023,120]
[350933741,1738215465655,1000.0,0.00023,120]
[350933742,1738215486503,1033.68875263,0.00023,120]
[350933792,1738215975515,211.5,0.00012,10]
[350933793,1738216106559,161.01,0.00010137,2]
[350933795,1738216156576,-169.94,0.000214,31]
[350933796,1738216156606,-169.94,0.000214,31]
[350933797,1738216156637,-169.94,0.000214,31]
[350933798,1738216156666,-169.94,0.000214,31]
[350933799,1738216156695,-169.94,0.000214,31]
[350933800,1738216156722,-169.94,0.000214,31]
[350933801,1738216156753,-169.94,0.000214,31]
[350933802,1738216156780,-169.94,0.000214,31]
[350933803,1738216156807,-169.94,0.000214,31]
[350933804,1738216156836,-169.94,0.000214,31]
[350933805,1738216156864,-169.94,0.000214,31]
[350933806,1738216156889,-169.94,0.000214,31]
[350933807,1738216156916,-169.94,0.000214,31]
[350933808,1738216156944,-169.94,0.000214,31]
[350933809,1738216156971,-169.94,0.000214,31]
[350933810,1738216156997,-169.94,0.000214,31]
[350933811,1738216157098,-422.0,0.00021886,30]
[350933812,1738216157127,-10124.58609799,0.0002194,30]
[350933813,1738216157151,-422.0,0.00021986,60]
[350933814,1738216157174,-4404.22878012,0.00022,30]
[350933815,1738216157197,-12600.0,0.00022,30]
[350933816,1738216157220,-19308.14512189,0.00022,30]
[350933823,1738216232383,-397.92779334,0.00013,2]
[350933824,1738216232441,-152.07220666,0.00013,2]
[350933825,1738216232456,-150.0,0.00013175,2]
[350933826,1738216232466,-34.42841334,0.00013699,2]
[350933827,1738216232479,-147.58158666,0.00013699,2]
[350933828,1738216232489,-150.0,0.000143,2]
[350933829,1738216232500,-150.0,0.000143,2]
[350933830,1738216232509,-247.96826741,0.00015,2]
[350933831,1738216232523,-352.03173259,0.00015,2]
[350933832,1738216232533,-753.8,0.00015633,2]
[350933833,1738216232542,-86.70755658,0.00016813,2]
[350933834,1738216232555,-74.30244342,0.00016813,2]
[350933835,1738216232565,-650.0,0.00017,2]
[350933836,1738216232574,-250.0,0.00017177,2]
[350933837,1738216232583,-475.23,0.00017375,2]
[350933838,1738216232595,-979.33,0.00017409,2]
[350933839,1738216232604,-691.77882702,0.00017419,2]
[350933840,1738216232616,-416.43117298,0.00017419,2]
[350933841,1738216232626,-150.0,0.00017562,2]
[350933842,1738216232635,-436.07,0.00017633,2]
[350933843,1738216232645,-1000.0,0.00017784,2]
[350933844,1738216232655,-300.0,0.00017835,2]
[350933845,1738216232667,-356.76,0.00017836,2]
[350933846,1738216232677,-896.56,0.00017836,2]
[350933847,1738216232686,-753.8,0.00017897,2]
[350933848,1738216232696,-391.76,0.00017927,2]
[350933849,1738216232706,-163.88,0.00018066,2]
[350933850,1738216232716,-1078.06,0.00018082,2]
[350933851,1738216232725,-200.0,0.00018127,2]
[350933852,1738216232735,-150.0,0.00018374,2]
[350933853,1738216232746,-171.22,0.00018441,2]
[350933854,1738216232755,-1515.62,0.000186,2]
[350933855,1738216232764,-250.0,0.00018603,2]
[350933856,1738216232773,-150.0,0.00018643,2]
[350933857,1738216232782,-1078.06,0.00018751,2]
[350933858,1738216232791,-1526.21,0.00018793,2]
[350933859,1738216232802,-1589.08644,0.0001881,2]
[350933860,1738216232812,-180.25288795,0.000189,2]
[350933861,1738216232821,-205.44546595,0.000189,2]
[350933862,1738216232832,-150.0,0.00018911,2]
[350933863,1738216232843,-500.0,0.00018973,2]
[350933864,1738216232854,-362.08609495,0.00018973,2]
[350933865,1738216232864,-151.77947107,0.00018973,2]
[350933866,1738216232874,-150.0,0.00018996,2]
[350933867,1738216232883,-1129.276,0.00018999,2]
[350933868,1738216232892,-173.79,0.00018999,2]
[350933869,1738216232902,-38581.289135,0.00019,4]
[350933872,1738216232914,-18081.38597511,0.00019,4]
[350933874,1738216232925,-579.36353194,0.00019,4]
[350933876,1738216232936,-28433.45965221,0.00019,4]
[350933879,1738216232955,-500.0,0.00019,4]
[350933884,1738216238126,-500.0,0.00018164,2]
[350933885,1738216238137,-3199.2795781,0.00019,4]
[350933949,1738216240325,-429.37338364,0.00019,4]
[350934085,1738216243212,-1228.49761,0.00019,4]
[350934086,1738216243484,-20389.1664038,0.00019,4]
[350934087,1738216243495,-54992.94236537,0.00019,2]
[350934088,1738216243505,-65093.11357982,0.00019,2]
[350934089,1738216243515,-700.0,0.00019,2]
[350934090,1738216243524,-64147.77136148,0.00019,3]
[350934091,1738216243533,-150.0,0.00019168,2]
[350934093,1738216243543,-180.25288792,0.00019178,2]
[350934095,1738216243552,-151.39,0.00019178,2]
[350934097,1738216243562,-150.0,0.00019229,2]
[350934099,1738216243572,-150.0,0.0001924,2]
[350934101,1738216243581,-150.0,0.00019243,2]
[350934103,1738216243590,-150.0,0.00019278,2]
[350934105,1738216243600,-23900.0,0.00019289,2]
[350934107,1738216243610,-200.0,0.00019306,2]
[350934109,1738216243619,-1078.06,0.0001942,2]
[350934111,1738216243629,-180.25288792,0.00019456,2]
[350934113,1738216243638,-420.0,0.00019463,2]
[350934115,1738216243647,-500.0,0.00019521,2]
[350934117,1738216243660,-150.0,0.00019523,2]
[350934118,1738216243669,-1536.81361253,0.00019662,2]
[350934119,1738216243679,-1447.99951155,0.00019663,2]
[350934120,1738216243689,-502.13754415,0.00019667,2]
[350934121,1738216243699,-1536.81361253,0.0001967,2]
[350934122,1738216243709,-1447.99951155,0.00019672,2]
[350934123,1738216243718,-1572.83280419,0.0001968,2]
[350934124,1738216243728,-1536.81361253,0.00019701,2]
[350934125,1738216243740,-2297.75500222,0.00019708,2]
[350934126,1738216243750,-300.0,0.00019727,2]
[350934127,1738216243759,-2297.75500222,0.00019728,2]
[350934128,1738216243769,-1447.99951155,0.00019729,2]
[350934129,1738216243779,-180.25288792,0.00019733,2]
[350934130,1738216243789,-200.0,0.00019755,2]
[350934131,1738216243799,-1536.81361253,0.0001976,2]
[350934132,1738216243809,-1572.83280419,0.00019767,2]
[350934133,1738216243819,-2297.75500222,0.00019769,2]
[350934134,1738216243829,-1572.83280419,0.00019772,2]
[350934135,1738216243839,-1447.99951155,0.00019776,2]
[350934136,1738216243848,-2297.75500222,0.00019783,2]
[350934137,1738216243858,-200.0,0.00019785,2]
[350934138,1738216243868,-1572.83280419,0.00019797,2]
[350934139,1738216243877,-4111.0,0.000198,2]
[350934140,1738216243887,-511.85875643,0.000198,2]
[350934141,1738216243897,-215.38720337,0.000199,2]
[350934142,1738216243907,-215.38720337,0.000199,2]
[350934143,1738216243916,-511.85875641,0.00019978,2]
[350934144,1738216243925,-1000.0,0.00019999,2]
[350934145,1738216243935,-1000.0,0.00019999,4]
[350934146,1738216243945,-1000.0,0.00019999,6]
[350934147,1738216243954,-454.81,0.0002,2]
[350934148,1738216243966,-24230.71536835,0.0002,2]
[350934149,1738216243977,-42668.9963796,0.0002,2]
[350934150,1738216243987,-3950.0,0.0002,2]
[350934151,1738216243998,-3710.34217091,0.0002,2]
[350934152,1738216244007,-1239.68904298,0.0002,2]
[350934153,1738216244017,-11725.45564125,0.0002,2]
[350934154,1738216244028,-1000.21959234,0.0002,2]
[350934155,1738216244038,-2149.21484312,0.0002,2]
[350934156,1738216244049,-300.0,0.0002,2]
[350934157,1738216244059,-300.0,0.0002,2]
[350934158,1738216244068,-300.0,0.0002,2]
[350934159,1738216244079,-300.0,0.0002,2]
[350934160,1738216244091,-530.45039135,0.0002,2]
[350934161,1738216244101,-1211.0,0.0002,2]
[350934162,1738216244112,-1000.0,0.00020007,2]
[350934163,1738216244122,-180.25288792,0.00020011,2]
[350934164,1738216244132,-356.76,0.00020065,2]
[350934165,1738216244143,-541.01,0.00020084,2]
[350934166,1738216244154,-1078.06,0.00020089,2]
[350934167,1738216244164,-511.85875641,0.00020156,2]
[350934168,1738216244174,-753.8,0.00020161,2]
[350934169,1738216244184,-4000.0,0.0002022,2]
[350934170,1738216244194,-478.07,0.0002022,2]
[350934171,1738216244204,-150.0,0.00020235,2]
[350934172,1738216244215,-271.91,0.00020275,2]
[350934173,1738216244224,-150.0,0.00020283,2]
[350934174,1738216244234,-180.25288792,0.00020289,2]
[350934175,1738216244243,-1000.0,0.000203,2]
[350934176,1738216244252,-500.0,0.00020356,2]
[350934177,1738216244262,-150.0,0.00020383,2]
[350934178,1738216244271,-150.0,0.00020392,2]
[350934179,1738216244280,-205.44546595,0.000204,2]
[350934180,1738216244289,-200.0,0.000204,7]
[350934181,1738216244299,-150.0,0.00020471,2]
[350934182,1738216244308,-182.80850111,0.00020493,2]
[350934183,1738216244319,-500.0,0.000205,7]
[350934184,1738216244329,-150.0,0.00020527,2]
[350934185,1738216244338,-151.39,0.00020558,2]
[350934186,1738216244347,-180.25288792,0.00020567,2]
[350934187,1738216244356,-700.0,0.000206,7]
[350934188,1738216244366,-1597.65466306,0.00020631,2]
[350934189,1738216244377,-150.0,0.00020676,2]
[350934190,1738216244387,-880.4,0.00020685,2]
[350934191,1738216244397,-301.27,0.00020685,2]
[350934192,1738216244407,-1000.0,0.000207,7]
[350934193,1738216244417,-2021.0,0.00020706,2]
[350934194,1738216244427,-1271.0,0.00020706,2]
[350934195,1738216244437,-637.0,0.00020706,2]
[350934196,1738216244447,-568.0,0.00020706,2]
[350934197,1738216244456,-150.0,0.00020706,2]
[350934198,1738216244466,-1866.0,0.00020706,2]
[350934199,1738216244476,-2951.0,0.00020706,2]
[350934200,1738216244486,-782.0,0.00020706,2]
[350934201,1738216244495,-907.0,0.00020706,2]
[350934202,1738216244506,-1263.0,0.00020706,2]
[350934203,1738216244516,-150.0,0.00020706,2]
[350934204,1738216244525,-538.0,0.00020706,2]
[350934205,1738216244535,-3908.0,0.00020706,2]
[350934206,1738216244545,-150.0,0.00020706,2]
[350934207,1738216244555,-1006.0,0.00020706,2]
[350934208,1738216244566,-150.0,0.00020706,2]
[350934209,1738216244576,-1107.0,0.00020706,2]
[350934210,1738216244586,-156.546,0.00020706,2]
[350934211,1738216244596,-158.189,0.00020706,2]
[350934212,1738216244606,-150.0,0.00020753,2]
[350934213,1738216244616,-1078.06,0.00020758,2]
[350934214,1738216244626,-182.80850111,0.00020767,2]
[350934215,1738216244636,-3000.0,0.000208,2]
[350934216,1738216244645,-1300.0,0.000208,7]